[Event "*** Titled Tuesday Blitz"]
[Site "Chess.com"]
[Date "2020.04.21"]
[Round "9"]
[White "sergiochess83"]
[Black "Ellaijio_B"]
[Result "1-0"]
[WhiteElo "2817"]
[BlackElo "2673"]
[TimeControl "180+1"]
[EndTime "11:50:37 PDT"]
[Termination "sergiochess83 won on time"]

1. c4 {[%clk 0:03:00.9]} 1... Nf6 {[%clk 0:02:59.4]} 2. Nc3 {[%clk 0:03:00]}
2... c5 {[%clk 0:02:59.2]} 3. Nf3 {[%clk 0:02:59.3]} 3... e6 {[%clk 0:02:59.5]}
4. e3 {[%clk 0:02:56.7]} 4... b6 {[%clk 0:02:57.7]} 5. d4 {[%clk 0:02:56.8]}
5... cxd4 {[%clk 0:02:58.6]} 6. exd4 {[%clk 0:02:56.4]} 6... Bb4 {[%clk
0:02:59]} 7. Bd3 {[%clk 0:02:42.3]} 7... Bb7 {[%clk 0:02:58.8]} 8. O-O {[%clk
0:02:39.9]} 8... Bxc3 {[%clk 0:02:59.2]} 9. bxc3 {[%clk 0:02:39.8]} 9... d6
{[%clk 0:02:59.5]} 10. Re1 {[%clk 0:02:36.5]} 10... O-O {[%clk 0:02:58.6]} 11.
a4 {[%clk 0:02:17.3]} 11... Nbd7 {[%clk 0:02:58.2]} 12. a5 {[%clk 0:02:14.6]}
12... bxa5 {[%clk 0:02:56.2]} 13. Nd2 {[%clk 0:02:14.6]} 13... e5 {[%clk
0:02:50.2]} 14. Nb3 {[%clk 0:02:13.2]} 14... Rb8 {[%clk 0:02:47]} 15. Nxa5
{[%clk 0:02:05.4]} 15... Ba8 {[%clk 0:02:46.4]} 16. Bg5 {[%clk 0:01:55.7]} 16...
Re8 {[%clk 0:02:33.3]} 17. h3 {[%clk 0:01:52.2]} 17... h6 {[%clk 0:02:22.6]} 18.
Bh4 {[%clk 0:01:50.2]} 18... Qc7 {[%clk 0:02:21]} 19. Ra2 {[%clk 0:01:41.6]}
19... exd4 {[%clk 0:01:37]} 20. cxd4 {[%clk 0:01:33.4]} 20... Be4 {[%clk
0:01:30.6]} 21. Bg3 {[%clk 0:00:53.7]} 21... Bxd3 {[%clk 0:01:22.6]} 22. Rxe8+
{[%clk 0:00:53.4]} 22... Rxe8 {[%clk 0:01:23.2]} 23. Qxd3 {[%clk 0:00:54.3]}
23... Ne4 {[%clk 0:01:23.5]} 24. c5 {[%clk 0:00:43.4]} 24... Nxg3 {[%clk
0:01:19.7]} 25. Qxg3 {[%clk 0:00:42.7]} 25... Qb8 {[%clk 0:01:13.3]} 26. Nb3
{[%clk 0:00:22.5]} 26... Re1+ {[%clk 0:00:47.7]} 27. Kh2 {[%clk 0:00:22.2]}
27... Rb1 {[%clk 0:00:48.6]} 28. Nd2 {[%clk 0:00:18.8]} 28... Rc1 {[%clk
0:00:21.7]} 29. Qxd6 {[%clk 0:00:16.4]} 29... Qxd6+ {[%clk 0:00:22.1]} 30. cxd6
{[%clk 0:00:17.2]} 30... Rc6 {[%clk 0:00:22.7]} 31. Rxa7 {[%clk 0:00:17.2]}
31... Rxd6 {[%clk 0:00:23.1]} 32. Nf3 {[%clk 0:00:16.7]} 32... f6 {[%clk
0:00:23.4]} 33. g4 {[%clk 0:00:15.8]} 33... Kf8 {[%clk 0:00:21.4]} 34. Kg3
{[%clk 0:00:15.5]} 34... g6 {[%clk 0:00:16.7]} 35. Kf4 {[%clk 0:00:15.5]} 35...
Nb6 {[%clk 0:00:16]} 36. Ke4 {[%clk 0:00:14.2]} 36... Nd5 {[%clk 0:00:15.9]} 37.
Nh4 {[%clk 0:00:12.7]} 37... Ne7 {[%clk 0:00:15.7]} 38. f4 {[%clk 0:00:12.5]}
38... Re6+ {[%clk 0:00:15.3]} 39. Kd3 {[%clk 0:00:12.6]} 39... Rb6 {[%clk
0:00:16.2]} 40. f5 {[%clk 0:00:09.8]} 40... gxf5 {[%clk 0:00:12.9]} 41. Nxf5
{[%clk 0:00:09.8]} 41... Nxf5 {[%clk 0:00:10.5]} 42. gxf5 {[%clk 0:00:10.7]}
42... Rb3+ {[%clk 0:00:10.4]} 43. Kc4 {[%clk 0:00:10.6]} 43... Rxh3 {[%clk
0:00:11.3]} 44. d5 {[%clk 0:00:11.1]} 44... Rf3 {[%clk 0:00:08.4]} 45. d6 {[%clk
0:00:11]} 45... Rxf5 {[%clk 0:00:07.6]} 46. Ra8+ {[%clk 0:00:10.5]} 46... Kf7
{[%clk 0:00:06.6]} 47. d7 {[%clk 0:00:11.1]} 47... Rf4+ {[%clk 0:00:07.5]} 48.
Kd3 {[%clk 0:00:10.2]} 48... Rf1 {[%clk 0:00:06.9]} 49. Ke2 {[%clk 0:00:10.4]}
49... Rd1 {[%clk 0:00:07.4]} 50. Kxd1 {[%clk 0:00:10]} 1-0

[Event "*** Titled Tuesday Blitz"]
[Site "Chess.com"]
[Date "2020.04.21"]
[Round "9"]
[White "NiranjanNavalgund"]
[Black "chessfrendz"]
[Result "0-1"]
[WhiteElo "2443"]
[BlackElo "2315"]
[TimeControl "180+1"]
[EndTime "11:50:37 PDT"]
[Termination "chessfrendz won by resignation"]

1. e4 {[%clk 0:03:00.5]} 1... d5 {[%clk 0:02:58.9]} 2. exd5 {[%clk 0:02:58.3]}
2... Qxd5 {[%clk 0:02:58.7]} 3. Qf3 {[%clk 0:02:58.3]} 3... Qxf3 {[%clk
0:02:57.8]} 4. Nxf3 {[%clk 0:02:59.2]} 4... Nf6 {[%clk 0:02:57.8]} 5. Bc4 {[%clk
0:02:58.1]} 5... c6 {[%clk 0:02:56.7]} 6. O-O {[%clk 0:02:58.1]} 6... Bf5 {[%clk
0:02:55.1]} 7. d3 {[%clk 0:02:55.3]} 7... e6 {[%clk 0:02:54.9]} 8. Bg5 {[%clk
0:02:52.7]} 8... Nbd7 {[%clk 0:02:54.1]} 9. Nc3 {[%clk 0:02:52.6]} 9... h6
{[%clk 0:02:53.2]} 10. Bf4 {[%clk 0:02:51.9]} 10... Nd5 {[%clk 0:02:52.8]} 11.
Bd2 {[%clk 0:02:51.3]} 11... Bd6 {[%clk 0:02:49.9]} 12. Rfe1 {[%clk 0:02:51.3]}
12... O-O {[%clk 0:02:48.8]} 13. Bb3 {[%clk 0:02:49.3]} 13... Nxc3 {[%clk
0:02:47.4]} 14. Bxc3 {[%clk 0:02:48.3]} 14... Nc5 {[%clk 0:02:45.7]} 15. Be5
{[%clk 0:02:44]} 15... Be7 {[%clk 0:02:41.4]} 16. Nd4 {[%clk 0:02:37.2]} 16...
Bg6 {[%clk 0:02:39.8]} 17. Bc4 {[%clk 0:02:32.5]} 17... Rfd8 {[%clk 0:02:30.8]}
18. b4 {[%clk 0:02:30.7]} 18... Na4 {[%clk 0:02:25.9]} 19. a3 {[%clk 0:02:28.4]}
19... Nb6 {[%clk 0:02:21.8]} 20. Bb3 {[%clk 0:02:27.5]} 20... Nd7 {[%clk
0:02:16.5]} 21. Bc7 {[%clk 0:02:25.6]} 21... Rdc8 {[%clk 0:02:15.7]} 22. Bg3
{[%clk 0:02:22.3]} 22... Kf8 {[%clk 0:02:12.7]} 23. Bxe6 {[%clk 0:02:19.4]}
23... fxe6 {[%clk 0:02:09.8]} 24. Nxe6+ {[%clk 0:02:20.3]} 24... Kf7 {[%clk
0:02:07.2]} 25. Nc7 {[%clk 0:02:18.9]} 25... Rxc7 {[%clk 0:02:06]} 26. Bxc7
{[%clk 0:02:18.1]} 26... Bf6 {[%clk 0:02:05.2]} 27. Rad1 {[%clk 0:02:16.7]}
27... Bc3 {[%clk 0:02:01.8]} 28. Re3 {[%clk 0:02:16.4]} 28... Nf6 {[%clk
0:02:00.4]} 29. Be5 {[%clk 0:02:13.8]} 29... Nd5 {[%clk 0:01:52.4]} 30. Rf3+
{[%clk 0:02:13.5]} 30... Kg8 {[%clk 0:01:46.1]} 31. Bxc3 {[%clk 0:02:13]} 31...
Nxc3 {[%clk 0:01:44.5]} 32. Re1 {[%clk 0:02:13.9]} 32... Bh5 {[%clk 0:01:37.5]}
33. Rh3 {[%clk 0:02:12.5]} 33... Bg4 {[%clk 0:01:36.4]} 34. Rh4 {[%clk
0:02:12.2]} 34... h5 {[%clk 0:01:30.2]} 35. h3 {[%clk 0:02:12.3]} 35... g5
{[%clk 0:01:29.5]} 36. hxg4 {[%clk 0:02:12.4]} 36... gxh4 {[%clk 0:01:29.5]} 37.
gxh5 {[%clk 0:02:12.7]} 37... Kf7 {[%clk 0:01:27.3]} 38. Re5 {[%clk 0:02:11.8]}
38... Kf6 {[%clk 0:01:20.9]} 39. Rc5 {[%clk 0:02:11.6]} 39... Nd5 {[%clk
0:01:13.7]} 40. c4 {[%clk 0:02:02.3]} 40... Nf4 {[%clk 0:01:11.9]} 41. h6 {[%clk
0:02:00.7]} 41... Rh8 {[%clk 0:01:07]} 42. b5 {[%clk 0:01:56.2]} 42... Nxd3
{[%clk 0:01:04.1]} 43. Rh5 {[%clk 0:01:54.8]} 43... Kg6 {[%clk 0:01:02.2]} 44.
Rxh4 {[%clk 0:01:55.1]} 44... Rxh6 {[%clk 0:00:55]} 45. Rxh6+ {[%clk 0:01:54.1]}
45... Kxh6 {[%clk 0:00:54]} 46. bxc6 {[%clk 0:01:53.6]} 46... bxc6 {[%clk
0:00:53.7]} 47. Kf1 {[%clk 0:01:48.3]} 47... Ne5 {[%clk 0:00:53.5]} 48. c5
{[%clk 0:01:47.5]} 48... Nd3 {[%clk 0:00:53.3]} 49. Ke2 {[%clk 0:01:47.5]} 49...
Nxc5 {[%clk 0:00:53]} 50. Ke3 {[%clk 0:01:47.8]} 50... Kg5 {[%clk 0:00:50.5]}
51. Kd4 {[%clk 0:01:47.8]} 51... Na6 {[%clk 0:00:48.8]} 52. Ke5 {[%clk
0:01:46.7]} 52... Nb8 {[%clk 0:00:33.3]} 53. f4+ {[%clk 0:01:27.4]} 53... Kg4
{[%clk 0:00:30.2]} 54. f5 {[%clk 0:01:27]} 54... c5 {[%clk 0:00:24]} 55. Ke6
{[%clk 0:01:20.6]} 55... c4 {[%clk 0:00:19.8]} 56. f6 {[%clk 0:01:07.7]} 56...
Nc6 {[%clk 0:00:18.6]} 57. Kd6 {[%clk 0:01:06.7]} 57... Nd8 {[%clk 0:00:16.8]}
58. Ke7 {[%clk 0:01:05.2]} 58... Nc6+ {[%clk 0:00:15]} 59. Kd6 {[%clk
0:01:05.3]} 59... Nd8 {[%clk 0:00:14.4]} 60. Ke7 {[%clk 0:01:01.2]} 60... Kg5
{[%clk 0:00:13.3]} 61. Kxd8 {[%clk 0:00:50.9]} 61... Kxf6 {[%clk 0:00:13]} 62.
Kc7 {[%clk 0:00:50.6]} 62... c3 {[%clk 0:00:12.5]} 63. Kb7 {[%clk 0:00:51.5]}
63... c2 {[%clk 0:00:12.7]} 64. Kxa7 {[%clk 0:00:52.4]} 0-1

[Event "*** Titled Tuesday Blitz"]
[Site "Chess.com"]
[Date "2020.04.21"]
[Round "9"]
[White "obliviate12"]
[Black "Ginger_GM"]
[Result "1-0"]
[WhiteElo "2767"]
[BlackElo "2582"]
[TimeControl "180+1"]
[EndTime "11:50:38 PDT"]
[Termination "obliviate12 won by resignation"]

1. e4 {[%clk 0:03:00.9]} 1... c5 {[%clk 0:02:55.1]} 2. Nf3 {[%clk 0:03:00.7]}
2... d6 {[%clk 0:02:54.9]} 3. d4 {[%clk 0:03:01.1]} 3... cxd4 {[%clk 0:02:55]}
4. Qxd4 {[%clk 0:03:02]} 4... Nc6 {[%clk 0:02:52.2]} 5. Qe3 {[%clk 0:03:01.8]}
5... Nf6 {[%clk 0:02:30.4]} 6. h3 {[%clk 0:03:01.4]} 6... d5 {[%clk 0:02:29]} 7.
exd5 {[%clk 0:03:01.1]} 7... Nxd5 {[%clk 0:02:28.7]} 8. Qb3 {[%clk 0:03:01.2]}
8... e6 {[%clk 0:02:17.3]} 9. Be2 {[%clk 0:03:01.2]} 9... Be7 {[%clk 0:02:16.8]}
10. c4 {[%clk 0:03:00.8]} 10... Nf6 {[%clk 0:02:15]} 11. O-O {[%clk 0:03:00.8]}
11... O-O {[%clk 0:02:14.9]} 12. Rd1 {[%clk 0:02:59.3]} 12... Qc7 {[%clk
0:02:12.5]} 13. Nc3 {[%clk 0:02:59.4]} 13... a6 {[%clk 0:02:13]} 14. Be3 {[%clk
0:02:59.1]} 14... Nd7 {[%clk 0:02:10.2]} 15. Rac1 {[%clk 0:02:56.5]} 15... Nc5
{[%clk 0:02:06.2]} 16. Qc2 {[%clk 0:02:25.8]} 16... b6 {[%clk 0:02:03.3]} 17. a3
{[%clk 0:02:24.8]} 17... a5 {[%clk 0:02:01.6]} 18. Nb5 {[%clk 0:02:18.2]} 18...
Qb8 {[%clk 0:02:01.9]} 19. Ng5 {[%clk 0:01:49.4]} 19... g6 {[%clk 0:01:53.3]}
20. Bf3 {[%clk 0:01:45.4]} 20... Bb7 {[%clk 0:01:53.4]} 21. Ne4 {[%clk
0:01:45.5]} 21... Ne5 {[%clk 0:01:49.9]} 22. Nxc5 {[%clk 0:01:36.8]} 22... Nxf3+
{[%clk 0:01:48.8]} 23. gxf3 {[%clk 0:01:37]} 23... Bxc5 {[%clk 0:01:30.8]} 24.
Qc3 {[%clk 0:01:23.9]} 24... Bc6 {[%clk 0:01:20.7]} 25. Kg2 {[%clk 0:01:17.6]}
25... Qb7 {[%clk 0:01:09.2]} 26. Bh6 {[%clk 0:01:09.5]} 26... f6 {[%clk
0:01:02.5]} 27. b4 {[%clk 0:01:03]} 27... axb4 {[%clk 0:01:02.2]} 28. axb4
{[%clk 0:01:03.9]} 28... Bxb4 {[%clk 0:00:35.4]} 29. Qxb4 {[%clk 0:01:02.9]}
29... Bxf3+ {[%clk 0:00:35.2]} 30. Kh2 {[%clk 0:00:51.6]} 30... Bxd1 {[%clk
0:00:35]} 31. Rxd1 {[%clk 0:00:51.4]} 31... Rfd8 {[%clk 0:00:32.4]} 32. Rxd8+
{[%clk 0:00:36.3]} 32... Rxd8 {[%clk 0:00:33.3]} 33. Qc3 {[%clk 0:00:37.1]}
33... Kf7 {[%clk 0:00:31.1]} 34. Qa3 {[%clk 0:00:28.1]} 34... Qb8+ {[%clk
0:00:25.9]} 35. Kg2 {[%clk 0:00:27.1]} 35... Rd7 {[%clk 0:00:26.1]} 36. Qf3
{[%clk 0:00:23.8]} 36... Ke7 {[%clk 0:00:22.2]} 37. Bg7 {[%clk 0:00:20.5]} 37...
f5 {[%clk 0:00:20.7]} 38. h4 {[%clk 0:00:20.1]} 38... Qb7 {[%clk 0:00:20.5]} 39.
Qxb7 {[%clk 0:00:19.2]} 39... Rxb7 {[%clk 0:00:20.9]} 40. Bd4 {[%clk 0:00:20.1]}
40... Kd7 {[%clk 0:00:17.8]} 41. Kf3 {[%clk 0:00:19.8]} 41... Kc6 {[%clk
0:00:17.8]} 42. Kf4 {[%clk 0:00:20.1]} 42... Rb8 {[%clk 0:00:17.1]} 43. Ke5
{[%clk 0:00:20.2]} 43... Ra8 {[%clk 0:00:17.5]} 44. Kxe6 {[%clk 0:00:17.4]}
44... Ra4 {[%clk 0:00:17.7]} 45. Nd6 {[%clk 0:00:17.5]} 45... Ra2 {[%clk
0:00:15.7]} 46. Nf7 {[%clk 0:00:15.6]} 46... Re2+ {[%clk 0:00:15.6]} 47. Ne5+
{[%clk 0:00:15.8]} 47... Kc7 {[%clk 0:00:15]} 48. Be3 {[%clk 0:00:15.8]} 48...
Rc2 {[%clk 0:00:14.8]} 49. Kf6 {[%clk 0:00:16]} 49... f4 {[%clk 0:00:12.2]} 50.
Bxf4 {[%clk 0:00:15.8]} 50... Rxf2 {[%clk 0:00:12.7]} 51. Nd3+ {[%clk
0:00:14.7]} 51... Rxf4+ {[%clk 0:00:12.1]} 52. Nxf4 {[%clk 0:00:15.6]} 52... Kc6
{[%clk 0:00:12.9]} 53. Kg7 {[%clk 0:00:15.7]} 53... Kc5 {[%clk 0:00:13.2]} 54.
Nd5 {[%clk 0:00:15.7]} 54... Kxc4 {[%clk 0:00:13.9]} 55. Nxb6+ {[%clk
0:00:15.5]} 55... Kc5 {[%clk 0:00:12.2]} 56. Kxh7 {[%clk 0:00:15.7]} 56... Kxb6
{[%clk 0:00:11.9]} 57. Kxg6 {[%clk 0:00:15.9]} 1-0

[Event "*** Titled Tuesday Blitz"]
[Site "Chess.com"]
[Date "2020.04.21"]
[Round "9"]
[White "zajka-molotok"]
[Black "Noghay"]
[Result "0-1"]
[WhiteElo "2406"]
[BlackElo "2584"]
[TimeControl "180+1"]
[EndTime "11:50:38 PDT"]
[Termination "Noghay won on time"]

1. d4 {[%clk 0:03:00.9]} 1... Nf6 {[%clk 0:02:59.5]} 2. c4 {[%clk 0:03:00.6]}
2... g6 {[%clk 0:02:59.8]} 3. Nc3 {[%clk 0:03:00.3]} 3... Bg7 {[%clk 0:03:00.3]}
4. e4 {[%clk 0:03:00.4]} 4... d6 {[%clk 0:03:00.9]} 5. Be2 {[%clk 0:02:59.2]}
5... O-O {[%clk 0:03:01.2]} 6. Be3 {[%clk 0:02:59]} 6... e5 {[%clk 0:02:57.6]}
7. d5 {[%clk 0:02:58.6]} 7... a5 {[%clk 0:02:55.6]} 8. g4 {[%clk 0:02:58.2]}
8... Na6 {[%clk 0:02:54]} 9. h4 {[%clk 0:02:57.4]} 9... c6 {[%clk 0:02:48.7]}
10. h5 {[%clk 0:02:49.4]} 10... Nc5 {[%clk 0:02:39.8]} 11. f3 {[%clk 0:02:44.8]}
11... a4 {[%clk 0:02:23.2]} 12. Qd2 {[%clk 0:02:31.2]} 12... Qa5 {[%clk
0:01:56.8]} 13. dxc6 {[%clk 0:02:17.2]} 13... bxc6 {[%clk 0:01:56.1]} 14. Qxd6
{[%clk 0:02:16.7]} 14... a3 {[%clk 0:01:33.6]} 15. b4 {[%clk 0:01:28.7]} 15...
Qxb4 {[%clk 0:01:27.9]} 16. Rc1 {[%clk 0:01:27.8]} 16... Ra5 {[%clk 0:01:04.2]}
17. h6 {[%clk 0:01:14.2]} 17... Bh8 {[%clk 0:01:03.9]} 18. Kf1 {[%clk 0:01:13]}
18... Be6 {[%clk 0:00:58.1]} 19. Nd1 {[%clk 0:00:49]} 19... Rc8 {[%clk
0:00:32.6]} 20. Nh3 {[%clk 0:00:40.5]} 20... Ne8 {[%clk 0:00:32.1]} 21. Qd2
{[%clk 0:00:31.7]} 21... Qxd2 {[%clk 0:00:30.1]} 22. Bxd2 {[%clk 0:00:31.9]}
22... Raa8 {[%clk 0:00:30.6]} 23. Be3 {[%clk 0:00:29.2]} 23... Na4 {[%clk
0:00:29.9]} 24. Ng5 {[%clk 0:00:27.6]} 24... Bd7 {[%clk 0:00:27.8]} 25. c5
{[%clk 0:00:25.1]} 25... Bf6 {[%clk 0:00:25.9]} 26. Nf2 {[%clk 0:00:17.5]} 26...
Nb2 {[%clk 0:00:24.6]} 27. Nd3 {[%clk 0:00:15.5]} 27... Nc7 {[%clk 0:00:20.6]}
28. Kf2 {[%clk 0:00:11.9]} 28... Ne6 {[%clk 0:00:20.2]} 29. Nxe6 {[%clk
0:00:11.3]} 29... Bxe6 {[%clk 0:00:21.1]} 30. Rhe1 {[%clk 0:00:08]} 30... Bxa2
{[%clk 0:00:20.8]} 31. Ra1 {[%clk 0:00:07.5]} 31... Bb3 {[%clk 0:00:18.5]} 32.
Nxb2 {[%clk 0:00:06]} 32... axb2 {[%clk 0:00:19.4]} 33. Rab1 {[%clk 0:00:06.4]}
33... Ra2 {[%clk 0:00:19.5]} 34. Bd3 {[%clk 0:00:03.5]} 34... Bh4+ {[%clk
0:00:18.3]} 35. Kf1 {[%clk 0:00:02.9]} 35... Bxe1 {[%clk 0:00:19.2]} 36. Kxe1
{[%clk 0:00:03.1]} 36... Rd8 {[%clk 0:00:19.3]} 37. Ke2 {[%clk 0:00:02.8]} 37...
Be6 {[%clk 0:00:17.9]} 38. Bd2 {[%clk 0:00:02.2]} 38... Rb8 {[%clk 0:00:16.2]}
39. Bc3 {[%clk 0:00:01.9]} 39... Ra3 {[%clk 0:00:15.7]} 40. Kd2 {[%clk
0:00:02.1]} 40... Rab3 {[%clk 0:00:15.2]} 41. Bc2 {[%clk 0:00:01.2]} 41... R3b5
{[%clk 0:00:14.8]} 42. Bd3 {[%clk 0:00:01.6]} 42... Rxc5 {[%clk 0:00:14.7]} 43.
Rxb2 {[%clk 0:00:02]} 43... Rxb2+ {[%clk 0:00:14.4]} 44. Bxb2 {[%clk 0:00:02.3]}
44... Ra5 {[%clk 0:00:15.3]} 45. Bc3 {[%clk 0:00:02.5]} 45... Ra2+ {[%clk
0:00:15.4]} 46. Ke3 {[%clk 0:00:03]} 46... f6 {[%clk 0:00:14.4]} 47. f4 {[%clk
0:00:02.6]} 47... exf4+ {[%clk 0:00:13.7]} 48. Kxf4 {[%clk 0:00:03]} 48... Ra3
{[%clk 0:00:14.3]} 49. Bxf6 {[%clk 0:00:01.2]} 49... Rxd3 {[%clk 0:00:13.6]} 50.
Ke5 {[%clk 0:00:01.8]} 50... Kf7 {[%clk 0:00:12.9]} 51. g5 {[%clk 0:00:01.6]}
51... c5 {[%clk 0:00:13.1]} 52. Kf4 {[%clk 0:00:01.5]} 52... c4 {[%clk
0:00:13.2]} 53. Be5 {[%clk 0:00:01.6]} 53... c3 {[%clk 0:00:13.5]} 0-1

[Event "*** Titled Tuesday Blitz"]
[Site "Chess.com"]
[Date "2020.04.21"]
[Round "9"]
[White "EugeneRougon"]
[Black "Cubitas"]
[Result "1/2-1/2"]
[WhiteElo "2695"]
[BlackElo "2528"]
[TimeControl "180+1"]
[EndTime "11:50:39 PDT"]
[Termination "Game drawn by repetition"]

1. e4 {[%clk 0:03:00.9]} 1... c5 {[%clk 0:02:58.9]} 2. Nf3 {[%clk 0:03:00.9]}
2... Nc6 {[%clk 0:02:59.4]} 3. Bb5 {[%clk 0:03:00.8]} 3... e6 {[%clk 0:02:59.1]}
4. O-O {[%clk 0:03:00.9]} 4... Nge7 {[%clk 0:02:59.3]} 5. d4 {[%clk 0:03:01.4]}
5... cxd4 {[%clk 0:02:56.3]} 6. Nxd4 {[%clk 0:03:02.3]} 6... a6 {[%clk
0:02:54.5]} 7. Be2 {[%clk 0:02:58.4]} 7... Nxd4 {[%clk 0:02:54.6]} 8. Qxd4
{[%clk 0:02:59.3]} 8... Nc6 {[%clk 0:02:55.2]} 9. Qc3 {[%clk 0:02:59.9]} 9... b5
{[%clk 0:02:36]} 10. a4 {[%clk 0:02:56.8]} 10... b4 {[%clk 0:02:35.7]} 11. Qg3
{[%clk 0:02:57.4]} 11... h5 {[%clk 0:02:18]} 12. h4 {[%clk 0:02:42.8]} 12... Be7
{[%clk 0:02:13.5]} 13. Bg5 {[%clk 0:02:30.4]} 13... Bxg5 {[%clk 0:02:10.8]} 14.
hxg5 {[%clk 0:02:30.7]} 14... h4 {[%clk 0:02:08.1]} 15. Qe3 {[%clk 0:02:27.9]}
15... e5 {[%clk 0:01:24.7]} 16. c3 {[%clk 0:02:09.3]} 16... Rb8 {[%clk
0:01:20.2]} 17. Nd2 {[%clk 0:02:01.1]} 17... d6 {[%clk 0:01:09.4]} 18. Bc4
{[%clk 0:01:51.1]} 18... Be6 {[%clk 0:00:59.1]} 19. Bxa6 {[%clk 0:01:48.4]}
19... Rh5 {[%clk 0:00:40.9]} 20. Bb5 {[%clk 0:01:44.8]} 20... Bd7 {[%clk
0:00:36]} 21. Nf3 {[%clk 0:01:39.1]} 21... Ne7 {[%clk 0:00:29.8]} 22. Rfd1
{[%clk 0:01:23.9]} 22... Bxb5 {[%clk 0:00:22.7]} 23. axb5 {[%clk 0:01:24.8]}
23... h3 {[%clk 0:00:20]} 24. g4 {[%clk 0:01:16.1]} 24... h2+ {[%clk 0:00:16.8]}
25. Kg2 {[%clk 0:01:11.7]} 25... Rh8 {[%clk 0:00:17.4]} 26. Nxe5 {[%clk
0:01:09.7]} 26... Qc8 {[%clk 0:00:15.4]} 27. Rxd6 {[%clk 0:01:07.4]} 27... Rxb5
{[%clk 0:00:14]} 28. Qf4 {[%clk 0:01:00.3]} 28... Rxe5 {[%clk 0:00:03.6]} 29.
Qxe5 {[%clk 0:00:17.1]} 29... h1=Q+ {[%clk 0:00:03.5]} 30. Rxh1 {[%clk
0:00:15.1]} 30... Qxg4+ {[%clk 0:00:04.1]} 31. Qg3 {[%clk 0:00:13.3]} 31...
Qxe4+ {[%clk 0:00:04.3]} 32. Qf3 {[%clk 0:00:09]} 32... Qxf3+ {[%clk 0:00:04.6]}
33. Kxf3 {[%clk 0:00:09.9]} 33... Rxh1 {[%clk 0:00:05]} 34. cxb4 {[%clk
0:00:09.8]} 34... Rb1 {[%clk 0:00:05.9]} 35. Rd2 {[%clk 0:00:09.3]} 35... Ng6
{[%clk 0:00:06]} 36. Ke4 {[%clk 0:00:08.6]} 36... Ke7 {[%clk 0:00:06.9]} 37. Kd5
{[%clk 0:00:07.2]} 37... Re1 {[%clk 0:00:07.6]} 38. b5 {[%clk 0:00:06.7]} 38...
Re5+ {[%clk 0:00:08]} 39. Kc6 {[%clk 0:00:07.2]} 39... Rxg5 {[%clk 0:00:07.8]}
40. b6 {[%clk 0:00:07.4]} 40... Ne5+ {[%clk 0:00:08.5]} 41. Kc7 {[%clk
0:00:07.5]} 41... Nc4 {[%clk 0:00:08.8]} 42. Re2+ {[%clk 0:00:07.4]} 42... Kf6
{[%clk 0:00:07.9]} 43. b7 {[%clk 0:00:07.3]} 43... Rc5+ {[%clk 0:00:08.6]} 44.
Kd7 {[%clk 0:00:06]} 44... Rb5 {[%clk 0:00:08.5]} 45. Kc7 {[%clk 0:00:06.5]}
45... Rc5+ {[%clk 0:00:06.7]} 46. Kd7 {[%clk 0:00:05.2]} 46... Rb5 {[%clk
0:00:05.2]} 47. Kc7 {[%clk 0:00:04.1]} 47... Rc5+ {[%clk 0:00:03.7]} 1/2-1/2

[Event "*** Titled Tuesday Blitz"]
[Site "Chess.com"]
[Date "2020.04.21"]
[Round "9"]
[White "pooh2012"]
[Black "lucasran"]
[Result "1-0"]
[WhiteElo "2501"]
[BlackElo "2602"]
[TimeControl "180+1"]
[EndTime "11:50:39 PDT"]
[Termination "pooh2012 won by resignation"]

1. d4 {[%clk 0:03:00.9]} 1... Nf6 {[%clk 0:02:59.6]} 2. a3 {[%clk 0:03:01.4]}
2... e6 {[%clk 0:02:59.4]} 3. Nf3 {[%clk 0:02:57.3]} 3... c5 {[%clk 0:02:58.1]}
4. dxc5 {[%clk 0:02:54.5]} 4... Bxc5 {[%clk 0:02:58.6]} 5. b4 {[%clk 0:02:54.1]}
5... Bb6 {[%clk 0:02:44.4]} 6. Bb2 {[%clk 0:02:51.4]} 6... d5 {[%clk 0:02:43.5]}
7. e3 {[%clk 0:02:51.1]} 7... O-O {[%clk 0:02:43.3]} 8. Nbd2 {[%clk 0:02:50.6]}
8... a5 {[%clk 0:02:42.1]} 9. Bd3 {[%clk 0:02:47.4]} 9... axb4 {[%clk
0:02:39.5]} 10. axb4 {[%clk 0:02:48.3]} 10... Rxa1 {[%clk 0:02:38.8]} 11. Qxa1
{[%clk 0:02:49.2]} 11... Nc6 {[%clk 0:02:38.2]} 12. Bc3 {[%clk 0:02:44.7]} 12...
Qe7 {[%clk 0:02:34.7]} 13. Qb2 {[%clk 0:02:40.9]} 13... Re8 {[%clk 0:02:06.8]}
14. b5 {[%clk 0:02:39.7]} 14... Nb8 {[%clk 0:02:04.5]} 15. O-O {[%clk
0:02:32.3]} 15... Nbd7 {[%clk 0:02:04.2]} 16. Ne5 {[%clk 0:02:29.6]} 16... Bc7
{[%clk 0:01:58]} 17. Ndf3 {[%clk 0:02:10.4]} 17... Nc5 {[%clk 0:01:56.2]} 18. b6
{[%clk 0:01:59.9]} 18... Bd6 {[%clk 0:01:55]} 19. Bb5 {[%clk 0:01:58.2]} 19...
Rd8 {[%clk 0:01:54.4]} 20. Ra1 {[%clk 0:01:55.5]} 20... Nfe4 {[%clk 0:01:51.7]}
21. Bb4 {[%clk 0:01:48.8]} 21... f6 {[%clk 0:01:51.4]} 22. Nd3 {[%clk
0:01:36.7]} 22... Bd7 {[%clk 0:01:05.6]} 23. Bxc5 {[%clk 0:01:17]} 23... Nxc5
{[%clk 0:01:03.4]} 24. Ra7 {[%clk 0:01:14.5]} 24... Rb8 {[%clk 0:00:58.5]} 25.
Nd4 {[%clk 0:00:52.5]} 25... e5 {[%clk 0:00:52.7]} 26. Nc6 {[%clk 0:00:43.7]}
26... bxc6 {[%clk 0:00:50.5]} 27. Bxc6 {[%clk 0:00:42.2]} 27... Qe8 {[%clk
0:00:20.9]} 28. Bxd5+ {[%clk 0:00:17.7]} 28... Kh8 {[%clk 0:00:21.3]} 29. b7
{[%clk 0:00:07.3]} 29... Qd8 {[%clk 0:00:19.5]} 30. Ra8 {[%clk 0:00:05.6]} 30...
Nxd3 {[%clk 0:00:18.4]} 31. cxd3 {[%clk 0:00:05.5]} 31... Qc7 {[%clk 0:00:18.3]}
32. g3 {[%clk 0:00:04.3]} 32... h6 {[%clk 0:00:17.3]} 33. Qa2 {[%clk 0:00:03.2]}
33... Be8 {[%clk 0:00:08.3]} 34. Kg2 {[%clk 0:00:02.9]} 34... Kh7 {[%clk
0:00:04.8]} 35. e4 {[%clk 0:00:03]} 35... Kh8 {[%clk 0:00:04.2]} 36. Qa6 {[%clk
0:00:02.5]} 36... Bd7 {[%clk 0:00:04.2]} 37. Qc4 {[%clk 0:00:02]} 37... Qxc4
{[%clk 0:00:03.5]} 38. dxc4 {[%clk 0:00:01.7]} 38... g6 {[%clk 0:00:02.7]} 39.
Kf3 {[%clk 0:00:02.1]} 39... Kg7 {[%clk 0:00:02.7]} 40. Ke2 {[%clk 0:00:02.6]}
40... Kf8 {[%clk 0:00:02.3]} 41. Kd3 {[%clk 0:00:03]} 41... Ke7 {[%clk
0:00:02.8]} 42. Kc3 {[%clk 0:00:03.5]} 42... Bc7 {[%clk 0:00:03.1]} 43. Kb4
{[%clk 0:00:03.4]} 43... Kd6 {[%clk 0:00:02.7]} 44. c5+ {[%clk 0:00:03.9]} 44...
Ke7 {[%clk 0:00:03.2]} 45. c6 {[%clk 0:00:04.4]} 45... Kd6 {[%clk 0:00:02.4]}
46. Kb5 {[%clk 0:00:04.9]} 46... Be6 {[%clk 0:00:02.6]} 47. Ka6 {[%clk
0:00:04.7]} 47... Bxd5 {[%clk 0:00:02.2]} 48. exd5 {[%clk 0:00:05.6]} 48... Kxd5
{[%clk 0:00:02.7]} 49. Ka7 {[%clk 0:00:06.1]} 49... Kxc6 {[%clk 0:00:01.1]} 50.
Rxb8 {[%clk 0:00:06.2]} 50... Bxb8+ {[%clk 0:00:01.9]} 51. Kxb8 {[%clk
0:00:07.1]} 51... e4 {[%clk 0:00:02.3]} 52. Kc8 {[%clk 0:00:07.5]} 52... f5
{[%clk 0:00:02.6]} 53. b8=Q {[%clk 0:00:07.5]} 53... f4 {[%clk 0:00:03.5]} 54.
Qxf4 {[%clk 0:00:07.3]} 54... e3 {[%clk 0:00:04.4]} 55. Qxe3 {[%clk 0:00:07.6]}
55... Kd5 {[%clk 0:00:05.2]} 56. Kd8 {[%clk 0:00:07.8]} 56... g5 {[%clk
0:00:06.1]} 57. Ke7 {[%clk 0:00:08.3]} 57... g4 {[%clk 0:00:06.1]} 58. Kf6
{[%clk 0:00:08.7]} 58... h5 {[%clk 0:00:07]} 59. Kg5 {[%clk 0:00:09.1]} 59...
Kc4 {[%clk 0:00:07.7]} 60. Kxh5 {[%clk 0:00:09.4]} 1-0